bitfinex/quotes_ETHUSD_20250803
["timestamp","ask_amount","ask_price","bid_price","bid_amount"]
[1754231070456,0.4755,3481.9,3481.4,5.4276]
[1754231070659,0.001,3482.2,3481.4,5.4276]
[1754231070962,0.4755,3481.8,3481.4,5.4276]
[1754231071461,0.4765,3482.2,3481.5,0.02872325]
[1754231071622,0.4765,3482.2,3481.6,0.38362918]
[1754231071823,0.4765,3482.2,3481.7,4.612]
[1754231072058,0.001,3482.2,3481.8,3.4]
[1754231072263,0.001,3482.2,3481.9,3.4]
[1754231072464,0.4765,3482.2,3482.0,4.612]
[1754231072761,0.4765,3482.2,3482.0,5.16771]
[1754231073061,0.4755,3482.1,3481.9,3.4]
[1754231073364,0.4303,3482.1,3482.0,4.611]
[1754231073926,0.001,3482.2,3482.0,4.611]
[1754231074223,0.001,3482.2,3482.0,5.4121]
[1754231074626,0.4755,3482.1,3482.0,5.4121]
[1754231075044,0.4755,3482.1,3482.0,5.4111]
[1754231075264,0.4755,3482.1,3482.0,4.61]
[1754231075626,0.9058,3482.1,3482.0,4.61]
[1754231075954,0.9058,3482.1,3482.0,8.01]
[1754231076961,0.4755,3482.1,3482.0,8.01]
[1754231077162,30.0,3482.0,3481.5,4.61]
[1754231077331,0.4303,3481.9,3481.5,4.61]
[1754231077536,0.4755,3481.8,3481.5,4.61]
[1754231077765,0.4755,3481.7,3481.5,4.61]
[1754231078257,0.9058,3482.0,3481.5,4.61]
[1754231078569,0.9058,3481.9,3481.5,4.61]
[1754231078755,0.4755,3481.8,3481.5,4.61]
[1754231079380,0.4755,3481.7,3481.5,4.61]
[1754231079542,0.4303,3481.9,3481.5,4.61]
[1754231079748,0.4755,3481.6,3481.5,4.61]
[1754231080144,0.4755,3481.9,3481.5,4.61]
[1754231080345,0.4755,3481.8,3481.5,4.61]
[1754231080576,0.4755,3481.7,3481.5,4.61]
[1754231080763,0.4755,3481.7,3481.1,0.9389]
[1754231080963,0.4755,3481.7,3481.2,8.009]
[1754231081268,0.4755,3481.7,3481.2,8.91819]
[1754231081571,0.4755,3481.7,3481.2,9.40979]
[1754231082770,0.4755,3481.7,3481.2,9.85709]
[1754231083776,30.0,3481.5,3481.0,0.144]
[1754231084076,0.9058,3481.4,3480.7,4.608]
[1754231084282,0.9058,3481.3,3480.7,4.608]
[1754231084581,0.4303,3481.5,3480.7,6.0996]
[1754231084878,0.4755,3481.4,3480.8,4.608]
[1754231086158,0.4755,3481.7,3480.9,0.4916]
[1754231086354,0.4755,3481.7,3481.0,5.56526]
[1754231086873,0.4303,3481.9,3481.0,5.56526]
[1754231086874,0.001,3482.2,3481.1,3.8916]
[1754231087040,0.4755,3482.0,3481.1,3.8916]
[1754231087383,0.4755,3482.0,3481.2,0.4473]
[1754231087554,0.4755,3482.0,3481.3,4.608]
[1754231087754,0.9058,3482.0,3481.3,4.608]
[1754231087962,0.9058,3482.0,3481.1,3.4]
[1754231087963,30.0,3481.8,3481.1,3.4]
[1754231088257,30.0,3481.6,3481.1,3.4]
[1754231088569,0.9058,3481.5,3480.5,0.9389]
[1754231088880,0.9058,3481.5,3480.6,4.608]
[1754231089255,0.4755,3481.4,3480.5,0.9389]
[1754231089471,0.4755,3481.4,3480.7,4.607]
[1754231089645,0.4755,3481.4,3480.8,4.607]
[1754231089853,0.4755,3481.4,3480.9,4.607]
[1754231090147,0.4755,3481.3,3480.9,4.607]
[1754231090343,0.4755,3481.2,3481.0,4.607]
[1754231090547,0.4755,3481.6,3481.0,4.607]
[1754231090879,0.4755,3481.8,3481.0,5.56416]
[1754231091454,0.4303,3482.1,3481.1,0.4916]
[1754231091668,0.9058,3482.1,3481.1,0.9389]
[1754231091870,0.9058,3482.1,3481.2,0.4916]
[1754231092053,0.4755,3482.1,3481.3,0.4473]
[1754231092389,0.001,3482.2,3481.4,5.0986]
[1754231092608,0.001,3482.2,3481.5,0.55]
[1754231092914,0.001,3482.2,3482.0,0.1432]
[1754231093204,0.001,3482.2,3482.1,4.607]
[1754231093492,0.001,3482.2,3482.1,6.0959]
[1754231094486,0.001,3482.2,3482.1,5.5449]
[1754231095276,0.001,3482.2,3482.1,4.606]
[1754231095499,0.001,3482.2,3482.1,5.08092]
[1754231095733,0.001,3482.2,3482.1,6.01982]
[1754231096015,0.001,3482.2,3482.1,5.08092]
[1754231096192,0.001,3482.2,3482.1,6.01882]
[1754231097073,0.001,3482.2,3482.1,6.16202]
[1754231098476,0.001,3482.2,3482.1,0.47492]
[1754231098719,0.4648,3482.2,3482.1,4.605]
[1754231098868,0.001,3482.2,3482.1,4.605]
[1754231100001,0.4648,3482.2,3482.1,4.604]
[1754231100689,0.906,3482.2,3482.1,4.604]
[1754231100891,0.906,3482.2,3481.4,3.4]
[1754231101098,0.4422,3482.2,3481.5,4.604]
[1754231101304,0.4638,3482.1,3481.5,4.604]
[1754231101600,0.001,3482.2,3481.5,5.0568]
[1754231102569,0.001,3482.2,3481.5,0.4528]
[1754231102769,0.001,3482.2,3481.6,4.604]
[1754231104105,0.001,3482.2,3481.7,4.603]
[1754231104406,0.001,3482.2,3481.7,5.16984]
[1754231104608,0.4648,3482.2,3481.8,4.603]
[1754231104777,0.001,3482.2,3481.8,4.603]
[1754231104977,0.001,3482.2,3481.8,5.0558]
[1754231105275,0.001,3482.2,3481.8,5.212124]
[1754231105474,0.001,3482.2,3481.9,21.20382511]
[1754231105784,0.001,3482.2,3482.1,0.6932]
[1754231106109,0.001,3482.2,3482.1,5.2962]
[1754231106474,0.001,3482.6,3482.1,9.2463183]
[1754231106723,0.001,3482.9,3482.6,3.55]
[1754231106940,0.001,3482.9,3482.8,3.6932]
[1754231107291,0.001,3482.9,3482.8,4.1618]
[1754231107491,0.001,3482.9,3482.8,4.64331253]
[1754231107725,0.001,3482.9,3482.8,4.6146]
[1754231107934,0.001,3482.9,3482.8,5.76041518]
[1754231109437,0.001,3482.9,3482.8,10.36141518]
[1754231110539,0.001,3482.9,3482.8,6.81141518]
[1754231110944,0.001,3482.9,3482.8,5.6656]
[1754231111641,0.001,3482.9,3482.8,4.7432]
[1754231112006,0.001,3482.9,3482.8,0.1432]
[1754231112207,0.001,3482.9,3482.8,4.7432]
[1754231112950,0.001,3482.9,3482.8,6.2146]
[1754231113151,0.001,3482.9,3482.8,8.86430185]
[1754231113533,0.001,3482.9,3482.8,11.86430185]
[1754231113738,0.001,3483.9,3482.9,3.55]
[1754231113920,0.001,3483.9,3483.0,8.2922]
[1754231114336,0.001,3483.9,3483.0,9.2136]
[1754231114657,0.001,3483.9,3483.0,10.39993018]
[1754231117061,0.001,3483.9,3483.4,3.399]
[1754231117255,0.001,3483.9,3483.5,7.997]
[1754231117423,0.001,3483.9,3483.7,0.1432]
[1754231117623,0.001,3483.9,3483.8,4.598]
[1754231118031,0.4648,3483.9,3483.8,4.598]
[1754231119637,0.906,3483.9,3483.8,4.598]
[1754231120439,0.906,3483.9,3483.5,3.5422]
[1754231120652,0.4638,3483.8,3483.6,4.597]
[1754231120850,0.4422,3483.9,3483.6,4.597]
[1754231121061,0.4638,3483.7,3483.6,4.597]
[1754231121266,0.4638,3483.7,3483.6,5.41092]
[1754231121779,0.905,3483.7,3483.5,7.995]
[1754231121979,0.4638,3483.7,3483.5,7.995]
[1754231122162,0.001,3483.9,3483.5,7.995]
[1754231122367,0.4638,3483.8,3483.5,7.995]
[1754231122743,0.4638,3483.7,3483.6,4.596]
[1754231122939,0.001,3483.9,3483.6,4.596]
[1754231123144,0.001,3483.9,3483.7,3.399]
[1754231123346,0.001,3483.9,3483.8,4.596]
[1754231123776,0.4648,3483.9,3483.8,4.596]
[1754231125065,0.001,3483.9,3483.8,4.596]
[1754231125548,0.4648,3483.9,3483.8,4.596]
[1754231128080,0.001,3483.9,3483.8,4.596]
[1754231131079,0.001,3483.9,3483.8,5.5328]
[1754231131380,0.001,3483.9,3483.8,5.676]
[1754231131688,0.001,3483.9,3483.8,6.2436]
[1754231134862,0.001,3483.9,3483.8,1.2072]
[1754231135062,0.001,3483.9,3483.8,4.7352]
[1754231135464,0.001,3483.9,3483.8,0.1432]
[1754231135772,0.4855,3483.9,3483.8,4.7352]
[1754231136175,0.001,3483.9,3483.8,0.1432]
[1754231136376,0.4855,3483.9,3483.4,0.4964]
[1754231136564,0.001,3483.9,3483.6,0.1432]
[1754231136752,0.4845,3483.8,3483.6,0.1432]
[1754231136953,0.4845,3483.8,3483.7,4.591]
[1754231138186,0.4845,3483.8,3483.6,0.1432]
[1754231138402,0.4845,3483.7,3482.6,0.4964]
[1754231138551,0.4845,3483.7,3483.1,0.1432]
[1754231138755,0.4845,3483.7,3483.2,4.59]
[1754231138975,0.4442,3483.8,3483.2,4.59]
[1754231138976,0.001,3483.9,3483.2,4.59]
[1754231139180,0.4845,3483.6,3483.2,4.59]
[1754231139361,0.4845,3483.6,3483.3,0.47332]
[1754231139699,0.9287,3483.5,3483.3,0.47332]
[1754231139850,0.001,3483.9,3482.8,0.1432]
[1754231140055,0.001,3483.9,3482.9,4.59]
[1754231140056,30.0,3483.8,3482.9,4.59]
[1754231140525,40.0,3483.6,3482.9,4.59]
[1754231140679,2.86824707,3483.5,3482.9,4.59]
[1754231140900,0.9287,3483.4,3482.9,4.59]
[1754231141109,0.001,3483.9,3482.9,4.59]
[1754231141307,0.9287,3483.3,3482.9,4.59]
[1754231141474,0.5,3483.0,3482.9,4.59]
[1754231141861,0.9845,3483.0,3482.9,4.59]
[1754231142958,0.9845,3483.0,3482.4,0.1432]
[1754231143194,0.9845,3483.0,3482.5,4.59]
[1754231143383,0.5,3483.0,3482.5,4.59]
[1754231143691,0.4845,3482.9,3482.4,0.5512]
[1754231143871,0.4845,3482.9,3482.6,4.589]
[1754231144807,0.4845,3482.8,3482.4,0.5512]
[1754231145013,0.9287,3482.7,3482.5,4.589]
[1754231145297,0.9287,3482.6,3482.5,4.589]
[1754231145785,0.4845,3482.6,3482.5,4.589]
[1754231146597,0.5,3483.0,3482.5,5.0479]
[1754231146795,0.5,3483.0,3482.6,0.9368]
[1754231147097,0.5,3483.0,3482.7,0.9368]
[1754231147403,0.5,3483.0,3482.8,1.10871253]
[1754231147704,0.5,3483.0,3482.9,4.588]
[1754231147900,0.5,3483.0,3482.9,5.1548]
[1754231148058,0.5,3483.0,3482.9,6.0916]
[1754231148253,0.5,3483.0,3482.9,0.5668]
[1754231148514,1.4287,3483.0,3482.8,4.588]
[1754231148708,0.4845,3482.9,3482.8,4.588]
[1754231148906,0.4845,3482.9,3482.1,3.4964]
[1754231149122,0.4845,3482.9,3482.2,5.67228]
[1754231149610,0.4845,3482.9,3482.3,4.588]
[1754231149812,0.4845,3482.9,3482.2,1.08428]
[1754231149997,0.4845,3482.9,3482.4,4.587]
[1754231150168,0.4845,3482.8,3482.4,4.587]
[1754231150362,0.4845,3482.8,3482.4,5.154128]
[1754231151005,0.5,3483.0,3482.4,5.154128]
[1754231151006,0.5,3483.0,3482.4,5.650528]
[1754231151205,0.9287,3482.9,3482.4,5.154128]
[1754231151410,0.9287,3482.8,3482.4,0.567128]
[1754231151709,0.4845,3482.7,3482.2,1.08428]
[1754231152207,0.4845,3482.7,3482.3,4.587]
[1754231152787,0.9287,3482.6,3482.3,4.587]
[1754231153001,0.4442,3482.6,3482.3,4.587]
[1754231153319,0.4845,3482.5,3482.3,4.587]
[1754231154197,0.9287,3482.4,3481.4,0.4964]
[1754231154368,0.4845,3482.3,3481.5,4.586]
[1754231154575,0.4845,3482.3,3481.6,0.55228]
[1754231155919,0.4442,3482.4,3480.9,0.002]
[1754231155920,0.4845,3482.5,3480.9,0.002]
[1754231156123,0.55,3482.1,3480.9,0.002]
[1754231156325,3.55,3481.9,3480.9,0.002]
[1754231156466,3.55,3481.9,3477.9,6.905]
[1754231156467,3.0,3481.4,3477.9,6.905]
[1754231156668,0.2879,3481.0,3478.0,4.586]
[1754231156919,40.0,3480.5,3479.6,0.55]
[1754231157084,40.55,3480.3,3479.6,0.55]
[1754231157421,0.55,3480.1,3479.6,0.55]
[1754231157622,0.14787,3480.0,3479.6,0.55]
[1754231157910,0.9287,3479.9,3479.6,0.55]
[1754231158111,0.9287,3479.8,3479.6,0.55]
[1754231158325,0.55,3480.2,3479.1,0.4964]
[1754231158326,3.55,3480.0,3479.1,0.4964]
[1754231158465,0.55,3480.0,3479.1,0.9368]
[1754231158670,0.4845,3480.2,3479.2,0.4739]
[1754231158866,30.0,3479.8,3478.7,0.4586]
[1754231159116,3.55,3479.5,3478.2,0.4739]
[1754231159338,0.4626,3479.4,3478.2,0.4739]
[1754231160022,40.0,3479.7,3478.4,0.144]
[1754231160189,0.4626,3479.7,3478.5,0.9067]
[1754231160394,0.4626,3479.7,3478.6,0.4739]
[1754231160607,3.0,3479.6,3478.7,0.46154637]
[1754231160791,0.4626,3480.1,3478.9,0.144]
[1754231161108,0.4626,3480.1,3479.0,0.4739]
[1754231161509,3.0,3479.9,3478.9,0.5768]
[1754231161710,3.0,3479.9,3479.0,0.4739]
[1754231161913,4.586,3480.5,3479.1,0.4328]
[1754231162116,4.586,3480.5,3479.2,0.6179]
[1754231162299,3.0,3480.4,3479.3,0.9067]
[1754231162499,30.0,3481.1,3479.2,0.144]
[1754231162725,30.0,3481.2,3479.9,0.144]
[1754231162886,30.0,3481.2,3479.3,21.16040516]
[1754231162887,0.4626,3481.1,3480.1,0.144]
[1754231163091,0.4626,3481.4,3480.2,0.9067]
[1754231163323,0.4487,3481.3,3480.2,0.9067]
[1754231163625,0.4626,3481.2,3480.2,0.9067]
[1754231164927,0.4487,3481.1,3480.0,0.4739]
[1754231165131,0.4487,3481.1,3479.9,0.4328]
[1754231165132,3.0,3480.9,3479.9,0.4328]
[1754231165303,3.0,3480.5,3479.4,0.4739]
[1754231165628,0.4626,3480.4,3479.4,0.6179]
[1754231165828,0.4626,3480.8,3479.5,0.9067]
[1754231166029,0.4626,3480.8,3479.7,0.144]
[1754231166236,3.0,3481.1,3479.8,0.9067]
[1754231166530,3.0,3481.1,3479.3,20.25370516]
[1754231166531,3.0,3480.6,3479.4,0.4739]
[1754231166831,0.9113,3480.5,3479.4,0.4739]
[1754231167038,0.4626,3480.4,3479.4,0.4739]
[1754231167604,0.9987,3480.9,3479.5,0.46153976]
[1754231167816,3.89602,3480.8,3479.6,0.4739]
[1754231168012,0.4626,3480.7,3479.6,0.4739]
[1754231168401,3.43342,3480.8,3479.7,0.4328]
[1754231168402,0.43342,3480.8,3479.7,0.4328]
[1754231168605,3.55,3481.1,3479.8,0.4739]
[1754231168829,0.4626,3481.0,3479.8,0.4739]
[1754231169043,1.36733,3481.0,3479.8,0.4739]
[1754231171020,0.4626,3481.0,3480.0,0.144]
[1754231172264,0.4626,3481.0,3480.1,0.9067]
[1754231175141,0.4626,3481.0,3480.2,0.4739]
[1754231176840,3.0,3481.4,3480.3,0.46153315]
[1754231177043,3.0,3481.4,3480.5,0.144]
[1754231177217,5.0466,3481.7,3480.6,0.9067]
[1754231177418,5.0466,3481.7,3480.7,0.5768]
[1754231177656,3.0,3481.6,3480.7,1.0507]
[1754231179756,3.0,3481.8,3480.7,0.144]
[1754231179914,5.95208,3481.8,3480.8,0.9067]
[1754231180254,0.4626,3481.7,3480.8,0.4328]
[1754231180822,3.9113,3481.7,3480.7,0.6179]
[1754231181044,3.4487,3481.7,3480.7,0.6179]
[1754231181256,0.4626,3481.6,3480.7,0.6179]
[1754231181858,3.0,3481.7,3480.8,0.4328]
[1754231182172,0.4626,3482.4,3481.2,0.144]
[1754231182325,0.73706,3482.2,3481.2,0.9067]
[1754231182662,3.0,3482.0,3481.0,0.144]
[1754231182864,0.4626,3481.9,3481.0,0.6179]
[1754231183065,0.1515837,3482.5,3481.1,4.33442655]
[1754231183229,0.1515837,3482.5,3481.8,0.144]
[1754231183424,0.1515837,3482.5,3482.1,0.1432]
[1754231183625,0.1515837,3482.5,3481.8,0.4739]
[1754231183845,0.4626,3482.5,3481.8,0.6179]
[1754231184474,0.4626,3482.5,3481.8,0.144]
[1754231184689,0.4626,3482.5,3481.7,3.399]
[1754231184690,0.9113,3482.5,3481.7,3.399]
[1754231184837,0.4487,3482.5,3481.7,3.399]
[1754231185038,3.0,3482.2,3480.9,4.581]
[1754231185270,0.44908963,3482.1,3481.2,0.144]
[1754231185608,0.4626,3482.1,3481.2,0.144]
[1754231186137,0.4487,3482.0,3480.9,0.5768]
[1754231186384,0.4626,3481.9,3480.9,0.5768]
[1754231186585,0.4626,3481.9,3480.9,1.0507]
[1754231186787,0.4626,3481.9,3481.0,0.9067]
[1754231186943,0.4626,3481.9,3481.0,1.46977]
[1754231187271,0.4626,3482.4,3481.1,0.93542655]
[1754231187470,0.4626,3482.3,3481.2,0.9067]
[1754231187685,0.4626,3482.3,3481.2,1.053677]
[1754231188057,0.4626,3482.3,3481.6,0.144]
[1754231188545,0.9113,3482.3,3481.2,0.4328]
[1754231188740,30.4854,3482.2,3481.1,0.6179]
[1754231189038,5.86824707,3482.1,3481.1,1.065]
[1754231189262,0.4854,3482.2,3481.1,1.065]
[1754231189847,3.4854,3482.5,3481.4,0.144]
[1754231190297,3.0,3482.3,3481.4,0.144]
[1754231190476,3.0,3482.2,3481.4,0.144]
[1754231190651,3.0,3482.3,3481.5,0.9399]
[1754231190850,3.0,3482.3,3481.0,0.9399]
[1754231190851,3.0,3482.1,3481.0,0.9399]
[1754231191097,0.9192,3482.0,3480.8,0.4928]
[1754231191302,10.55,3482.1,3480.9,0.144]
[1754231191499,0.9192,3481.9,3480.7,0.144]
[1754231191799,3.0,3481.5,3480.3,0.4471]
[1754231191948,0.9192,3481.4,3480.6,0.144]
[1754231192149,0.4854,3481.3,3480.3,0.43389]
[1754231192455,0.4854,3481.3,3480.1,0.144]
[1754231192456,1.82572,3481.2,3480.1,0.144]
[1754231192651,5.0634,3481.1,3480.1,0.144]
[1754231192858,3.4854,3481.0,3480.1,0.144]
[1754231193112,3.9192,3481.0,3479.9,4.578]
[1754231193299,3.4338,3481.0,3480.1,0.002]
[1754231193457,11.72038,3480.9,3480.1,0.002]
[1754231193664,3.0,3480.6,3480.1,0.002]
[1754231193861,3.0,3480.4,3480.1,0.002]
[1754231194195,40.0,3480.5,3480.1,0.002]
[1754231194196,0.9192,3480.5,3480.1,0.002]
[1754231194343,0.55,3480.2,3480.1,0.002]
[1754231194543,36.41824707,3480.2,3480.1,0.002]
[1754231194782,37.33744707,3480.2,3480.1,0.002]
[1754231196466,41.91544707,3480.2,3480.1,0.002]
[1754231196887,7.577,3480.2,3480.1,0.002]
[1754231197090,8.0624,3480.2,3480.1,0.002]
[1754231198169,8.4962,3480.2,3480.1,0.002]
[1754231198508,8.0624,3480.2,3480.1,0.002]
[1754231198881,3.4854,3480.2,3480.1,0.002]
[1754231199205,7.577,3480.2,3480.1,0.002]
[1754231200108,3.0,3480.2,3480.1,0.002]
[1754231200318,4.577,3480.5,3480.1,0.9419]
[1754231200490,3.0,3480.4,3480.1,0.002]
[1754231200694,0.9192,3481.1,3480.2,0.9399]
[1754231200900,3.0,3480.9,3480.2,0.9399]
[1754231201267,0.4854,3481.1,3480.2,0.9399]
[1754231201473,4.577,3480.8,3480.3,0.96863315]
[1754231201795,0.4854,3481.6,3480.4,0.9399]
[1754231201992,4.577,3481.5,3480.2,0.144]
[1754231202192,0.4854,3481.6,3480.5,0.9399]
[1754231202369,4.577,3481.6,3480.6,0.9399]
[1754231202566,4.577,3481.6,3480.7,0.9399]
[1754231202769,4.576,3481.5,3480.8,0.9399]
[1754231202970,3.0,3481.4,3480.8,0.9399]
[1754231205732,3.0,3481.4,3480.7,0.144]
[1754231205733,0.4854,3481.3,3480.7,0.144]
[1754231206035,4.575,3481.4,3480.8,0.4928]
[1754231206251,3.0,3481.3,3480.8,0.4928]
[1754231206584,4.575,3481.6,3480.9,0.9399]
[1754231206781,4.575,3481.7,3481.0,0.9399]
[1754231207016,3.0,3481.7,3481.0,0.9399]
[1754231207228,4.575,3481.8,3481.0,0.9399]
[1754231207541,0.001,3482.6,3481.1,0.4928]
[1754231207716,4.575,3482.1,3481.1,0.96862655]
[1754231208031,3.0,3482.1,3481.1,0.9399]
[1754231208732,3.0,3482.1,3480.4,3.0]
[1754231208929,0.9192,3482.0,3480.7,0.9399]
[1754231209089,0.4854,3481.9,3480.7,0.9399]
[1754231209280,0.64938556,3481.8,3480.7,0.9399]
[1754231209485,0.64938556,3481.8,3480.3,0.9399]
[1754231209486,30.0,3481.6,3480.3,0.9399]
[1754231209814,0.21558556,3481.8,3480.1,0.002]
[1754231209815,30.0,3481.4,3480.1,0.002]
[1754231210198,40.0,3481.2,3480.1,0.002]
[1754231210401,2.86824707,3481.1,3480.1,0.002]
[1754231210613,4.574,3481.0,3480.1,0.002]
[1754231210993,0.4854,3480.9,3480.1,0.002]
[1754231213625,0.4854,3481.2,3480.2,0.4928]
[1754231213819,5.0584,3481.2,3480.2,0.4928]
[1754231214626,3.0,3481.1,3480.2,0.4928]
[1754231215128,0.4854,3481.0,3480.2,0.4928]
[1754231215298,0.4854,3481.0,3480.1,0.4491]
[1754231215299,33.4338,3480.9,3480.1,0.002]
[1754231215501,0.4338,3480.9,3480.1,0.002]
[1754231215700,1.87732,3480.8,3480.1,0.002]
[1754231216086,5.4922,3480.7,3480.1,0.002]
[1754231216288,3.0,3480.6,3480.1,0.002]
[1754231216517,3.4854,3480.6,3480.1,0.002]
[1754231216827,0.9192,3480.5,3480.1,0.002]
[1754231217202,0.4854,3480.4,3480.1,0.002]
[1754231217408,0.9192,3480.4,3480.1,0.002]
[1754231217708,0.4854,3480.3,3480.1,0.002]
[1754231217904,0.9192,3480.3,3480.1,0.002]
[1754231218104,0.4338,3480.3,3480.1,0.002]
[1754231218425,0.4854,3480.2,3480.1,0.002]
[1754231218626,0.9309,3480.2,3480.1,0.002]
[1754231218846,2.32399,3480.2,3480.1,0.002]
[1754231219031,0.9309,3480.2,3480.1,0.002]
[1754231219402,0.4854,3480.2,3480.1,0.002]
[1754231221549,0.9348,3480.2,3480.1,0.002]
[1754231222047,3.0,3480.6,3480.1,0.953]
[1754231222204,3.0,3480.6,3480.1,0.002]
[1754231222543,3.0,3480.6,3480.2,0.951]
[1754231222732,0.4893,3480.9,3480.1,0.002]
[1754231222929,0.4893,3480.6,3480.1,0.002]
[1754231224148,3.0,3480.6,3480.2,0.951]
[1754231224514,7.571,3481.0,3480.2,0.951]
[1754231224731,3.0,3480.9,3480.2,0.951]
[1754231224933,3.0,3480.9,3480.2,0.4723]
[1754231225131,4.571,3481.0,3480.3,0.4787]
[1754231225443,4.57,3481.2,3480.4,0.4723]
[1754231225630,3.0,3481.1,3480.5,0.144]
[1754231225836,3.0,3481.1,3480.5,0.6227]
[1754231226138,0.4893,3482.0,3480.6,0.951]
[1754231226311,5.0593,3482.0,3480.9,0.144]
[1754231226511,5.0593,3482.0,3481.0,0.951]
[1754231226848,3.0,3481.9,3481.0,0.951]
[1754231227527,0.4893,3481.8,3481.0,0.951]
[1754231228107,0.4893,3481.8,3480.1,0.002]
[1754231228108,0.55,3481.5,3480.1,0.002]
[1754231228344,3.0,3481.2,3480.1,0.146]
[1754231228710,0.55,3481.0,3480.1,0.146]
[1754231229050,3.0,3480.8,3480.1,0.002]
[1754231229256,3.90538,3480.8,3480.1,0.002]
[1754231229752,0.9348,3480.7,3480.1,0.002]
[1754231230114,3.4893,3480.6,3480.1,0.002]
[1754231230316,3.9348,3480.6,3480.1,0.002]
[1754231230536,3.0,3480.2,3480.1,0.002]
[1754231230849,3.0,3480.3,3480.1,0.002]
[1754231231248,0.9348,3480.2,3480.1,0.002]
[1754231231612,3.0,3480.3,3480.1,0.002]
[1754231231813,3.0,3480.5,3480.1,0.002]
[1754231232022,0.4893,3480.2,3480.1,0.002]
[1754231233656,4.29513,3480.5,3480.1,0.002]
[1754231233820,0.4893,3480.2,3480.1,0.002]
[1754231236053,4.29513,3480.5,3480.1,0.002]
[1754231236490,0.4893,3480.4,3480.1,0.002]
[1754231236689,0.4893,3480.8,3480.1,0.002]
[1754231236892,0.001,3480.9,3480.2,0.951]
[1754231236893,3.0,3480.6,3480.2,0.951]
[1754231237067,3.0,3480.6,3480.1,0.002]
[1754231237274,3.0,3480.6,3480.2,0.951]
[1754231238355,3.0,3480.6,3480.1,0.002]
[1754231238594,3.0,3480.6,3480.1,0.953]
[1754231241987,3.0,3480.6,3480.2,0.4787]
[1754231242716,3.0,3480.6,3480.2,0.951]
[1754231243307,3.0,3480.6,3480.1,0.002]
[1754231243519,3.001,3480.9,3480.3,0.951]
[1754231243722,0.001,3480.9,3480.4,0.4787]
[1754231243884,0.001,3480.9,3480.5,0.951]
[1754231244085,0.001,3480.9,3480.6,0.951]
[1754231244920,0.001,3480.9,3480.6,0.4723]
[1754231245120,0.001,3480.9,3480.7,0.4787]
[1754231246332,0.001,3480.9,3480.4,0.144]
[1754231246633,0.001,3480.9,3480.1,0.002]
[1754231246809,0.001,3480.9,3480.4,0.4787]
[1754231247013,0.001,3480.9,3480.5,0.951]
[1754231247522,0.4893,3480.8,3480.3,0.144]
[1754231248202,0.4893,3480.8,3480.3,1.095]
[1754231248835,0.001,3480.9,3480.4,0.9504]
[1754231249543,0.001,3480.9,3480.3,0.144]
[1754231249730,0.001,3480.9,3480.5,0.9504]
[1754231250098,0.001,3480.9,3480.6,0.9504]
[1754231250701,0.001,3480.9,3480.3,0.144]
[1754231250900,0.001,3480.9,3480.4,0.9504]
[1754231251516,0.001,3480.9,3480.5,0.9504]
[1754231252039,0.001,3480.9,3480.3,0.144]
[1754231252197,0.001,3480.9,3480.4,0.9504]
[1754231252717,0.001,3480.9,3480.5,0.9504]
[1754231253140,0.001,3480.9,3480.5,0.4551]
[1754231253384,0.001,3480.9,3480.6,0.4953]
[1754231253539,0.001,3480.9,3480.6,0.9504]
[1754231255764,0.001,3480.9,3480.3,0.144]
[1754231255974,0.001,3480.9,3480.7,0.9504]
[1754231256274,0.001,3480.9,3480.4,0.9504]
[1754231257181,0.001,3480.9,3480.5,0.0287315]
[1754231257339,0.001,3480.9,3480.5,0.9504]
[1754231257670,0.001,3480.9,3480.6,0.4953]
[1754231257880,0.001,3480.9,3480.6,0.9504]
[1754231258179,0.001,3480.9,3480.4,0.144]
[1754231258336,0.4604,3480.8,3480.4,0.144]
[1754231259180,0.001,3480.9,3480.4,0.144]
[1754231259350,0.4604,3480.7,3480.1,0.6011]
[1754231259671,0.4604,3480.7,3480.1,1.66234]
[1754231260196,0.001,3480.9,3480.1,1.66234]
[1754231260355,0.001,3480.9,3480.2,0.4953]
[1754231260675,0.001,3480.9,3480.2,0.9504]
[1754231261147,0.001,3480.9,3480.3,0.002]
[1754231261864,0.001,3480.9,3480.4,0.4953]
[1754231262068,0.001,3480.9,3480.3,0.002]
[1754231262374,0.001,3480.9,3480.5,0.4953]
[1754231262875,0.001,3480.9,3480.6,0.9504]
[1754231263063,0.001,3480.9,3480.4,0.144]